[Event "45th FIDE Womens Olympiad 2024"]
[Site "Budapest"]
[Date "2024.09.12"]
[Round "2.143"]
[White "Rice, Lauren"]
[Black "Krumina, Linda"]
[Result "1/2-1/2"]
[ECO "E11"]
[WhiteElo "1824"]
[BlackElo "2091"]
[Annotator "NA"]
[PlyCount "106"]
[EventDate "2024.09.05"]
[EventType "team-tourn"]
[EventCountry "HUN"]
[SourceTitle "playchess.com"]
[Source "ChessBase"]
[SourceQuality "1"]
[WhiteTeam "Singapore"]
[BlackTeam "Latvia"]
[WhiteTeamCountry "SIN"]
[BlackTeamCountry "LAT"]
[TimeControl "40/5400+30:1800+30"]

1. d4 Nf6 2. c4 e6 3. Nf3 d5 4. g3 Bb4+ 5. Bd2 Be7 6. Bg2 Nbd7 7. O-O O-O 8. Qc2 c6 9. Rd1 Ne4 10. Nc3 f5 11. Bf4 g5 12. Be5 g4 13. Ne1 Nxe5 14. dxe5 Qb6 15. e3 Bg5 16. Nxe4 dxe4 17. Bxe4 fxe4 18. Qxe4 Qxb2 19. Nc2 Rf5 20. Rd2 Qxe5 21. Qxg4 Qg7 22. Rad1 e5 23. c5 Rf8 24. Qc4+ Qf7 25. Qe2 Be6 26. h4 Be7 27. Nb4 Bxc5 28. Nd3 Bd6 29. Nf4 exf4 30. Rxd6 fxe3 31. Qxe3 Rae8 32. R1d4 Bd5 33. Rg4+ Qg7 34. Rxg7+ Kxg7 35. Rd7+ Kf6 36. Qg5+ Ke6 37. Rxb7 Kd6 38. Rb1 Rf7 39. Qd2 Re4 40. Qh6+ Re6 41. Qd2 Re4 42. Rd1 Rfe7 43. Qa5 h5 44. Qd2 Kd7 45. Qa5 Ke8 46. Rxd5 cxd5 47. Qxd5 R4e5 48. Qc6+ Kf7 49. Qh6 a5 50. Qh7+ Kf6 51. Qh6+ Kf7 52. Qh7+ Kf6 53. Qh6+ Kf7 1/2-1/2

[Event "45th FIDE Womens Olympiad 2024"]
[Site "Budapest"]
[Date "2024.09.12"]
[Round "2.144"]
[White "Vidruska, Renate"]
[Black "Fang, Kun"]
[Result "0-1"]
[ECO "C54"]
[WhiteElo "2035"]
[BlackElo "1769"]
[Annotator "NA"]
[PlyCount "116"]
[EventDate "2024.09.05"]
[EventType "team-tourn"]
[EventCountry "HUN"]
[SourceTitle "playchess.com"]
[Source "ChessBase"]
[SourceQuality "1"]
[WhiteTeam "Latvia"]
[BlackTeam "Singapore"]
[WhiteTeamCountry "LAT"]
[BlackTeamCountry "SIN"]
[TimeControl "40/5400+30:1800+30"]

1. e4 e5 2. Nf3 Nc6 3. Bc4 Bc5 4. c3 Nf6 5. d3 d6 6. O-O h6 7. Re1 O-O 8. h3 a6 9. a4 Re8 10. Nbd2 Ba7 11. b4 Be6 12. Bxe6 Rxe6 13. Bb2 Ne7 14. Nf1 Ng6 15. c4 Qe8 16. Ng3 c6 17. a5 Rd8 18. Qc2 d5 19. Nf5 Bb8 20. g3 Ne7 21. Ne3 d4 22. Ng2 Nh7 23. Nd2 Qd7 24. Nb3 Ng5 25. Nc5 Nf3+ 26. Kh1 Qc8 27. Nxe6 Qxe6 28. g4 Nxe1 29. Rxe1 Ng6 30. Bc1 Qf6 31. Qe2 Bc7 32. Bd2 Re8 33. Rf1 Re6 34. f3 Qe7 35. Qe1 Rf6 36. Qg3 Bd6 37. Qe1 Bc7 38. Kh2 Re6 39. Qg3 Bd8 40. Qe1 Bc7 41. Qc1 Bd8 42. Kh1 Nh4 43. f4 Nxg2 44. Kxg2 exf4 45. Rxf4 Bc7 46. Rf5 Rf6 47. Qg1 Rxf5 48. gxf5 Be5 49. Kf3 Kh7 50. Qg4 Bd6 51. c5 Be5 52. Ke2 Qe8 53. f6 Bxf6 54. Qf5+ Kg8 55. Bxh6 Qe6 56. Bf4 Bh4 57. Qxe6 fxe6 58. e5 Kf7 0-1

[Event "45th FIDE Womens Olympiad 2024"]
[Site "Budapest"]
[Date "2024.09.12"]
[Round "2.145"]
[White "Alinasab, Mobina"]
[Black "Ortez, Andrea"]
[Result "1-0"]
[ECO "B31"]
[WhiteElo "2336"]
[BlackElo "1948"]
[Annotator "TA"]
[PlyCount "63"]
[EventDate "2024.09.05"]
[EventType "team-tourn"]
[EventCountry "HUN"]
[SourceTitle "playchess.com"]
[Source "ChessBase"]
[SourceQuality "1"]
[WhiteTeam "Iran"]
[BlackTeam "El Salvador"]
[WhiteTeamCountry "IRI"]
[BlackTeamCountry "ESA"]
[TimeControl "40/5400+30:1800+30"]

{[%evp 16,62,16,8,14,20,34,33,33,21,34,31,20,29,46,43,66,37,35,29,33,37,47,33,46,31,21,21,133,106,135,134,126,126,127,137,138,110,120,118,118,90,95,0,142,125,127,132,29999]} 1. e4 c5 2. Nf3 Nc6 3. Bb5 g6 4. Bxc6 dxc6 5. d3 Bg7 6. h3 Nf6 {[%cal Bg8f6,Bf6d7,Bd7f8,Bf8e6,Be6d4][%mdl 32]} 7. Nc3 Nd7 8. Be3 e5 9. Qd2 h6 10. O-O Qe7 11. Nh2 Nf8 {White is slightly better.} 12. f4 exf4 13. Bxf4 Ne6 14. Bg3 Nd4 {[%cal Oc5c4]} 15. Rae1 h5 {[#]} 16. Nd5 $1 cxd5 17. exd5 Ne6 18. dxe6 Bxe6 {[%cal Oe8g8]} 19. Be5 Bh6 20. Bf4 Bg7 21. Nf3 $36 {[%mdl 2048] White fights for an advantage.} Qd7 (21... O-O $11) 22. Be5 Bh6 (22... f6 $2 23. Bxf6 Bxf6 24. Rxe6+ Qxe6 25. Re1 $18) 23. Qc3 O-O 24. Qxc5 Rac8 25. Qf2 {White is more active.} ({Don't play} 25. Qxa7 Rxc2 26. Nd4 Rxg2+ 27. Kxg2 Bxh3+ 28. Kf2 Bxf1 29. Rxf1 f6 $11) 25... Rfe8 26. a3 ({Much weaker is} 26. Qxa7 $6 Rxc2 27. Bc3 Bf8 $14 (27... Qxd3 28. Qd4 $16)) 26... b5 27. Bc3 a6 28. Qh4 Qd8 29. Qf2 (29. Bf6 $16 Qb6+ 30. Bd4) 29... Qc7 (29... Qd7 $1 $11 {remains equal.}) 30. Kh1 {And now Qd4 would win.} Qd6 31. Nd2 {Black must now prevent Ne4.} Bd7 $2 {[%mdl 8192] [#]} (31... f5 $16 32. Nf3 Bf7 33. Rxe8+ Rxe8) 32. Qxf7# {Weighted Error Value: White=0.13 (very precise) /Black=0.39.  Loses game:     	---       	Black=1      Mistake:       	White=1     	Black=2      Inaccurate:     	White=1     	---        OK:         	White=11    	Black=10     Best:        	White=1     	Black=1} 1-0

[Event "45th FIDE Womens Olympiad 2024"]
[Site "Budapest"]
[Date "2024.09.12"]
[Round "2.146"]
[White "Garcia, Angie"]
[Black "Azali, Tannaz"]
[Result "0-1"]
[ECO "B41"]
[WhiteElo "2015"]
[BlackElo "2125"]
[Annotator "NA"]
[PlyCount "92"]
[EventDate "2024.09.05"]
[EventType "team-tourn"]
[EventCountry "HUN"]
[SourceTitle "playchess.com"]
[Source "ChessBase"]
[SourceQuality "1"]
[WhiteTeam "El Salvador"]
[BlackTeam "Iran"]
[WhiteTeamCountry "ESA"]
[BlackTeamCountry "IRI"]
[TimeControl "40/5400+30:1800+30"]

1. e4 c5 2. Nf3 e6 3. d4 cxd4 4. Nxd4 a6 5. c4 Nf6 6. Nc3 Bb4 7. Qd3 d6 8. Bd2 Nbd7 9. f3 Ne5 10. Qc2 Bd7 11. Nb3 Rc8 12. a3 Bxc3 13. Bxc3 Ba4 14. Bxe5 dxe5 15. Qc3 Nxe4 16. fxe4 Qh4+ 17. Ke2 Qxe4+ 18. Kf2 Qf4+ 19. Ke1 Qh4+ 20. Kd2 Rd8+ 21. Ke2 Qe4+ 22. Kf2 Qf4+ 23. Ke1 Bxb3 24. Be2 Ba4 25. Qb4 Bc6 26. Rf1 Qxh2 27. Rf2 Qh4 28. Rc1 e4 29. Rc3 Qg5 30. Qb3 Qd2+ 31. Kf1 e3 32. Rf4 Bxg2+ 33. Kxg2 Qxe2+ 34. Kg3 Qe1+ 35. Kf3 e2 36. Re3 Qh1+ 37. Kxe2 O-O 38. Rg3 Qh5+ 39. Rff3 e5 40. Qc3 Rd4 41. Kf2 Rfd8 42. Kg2 Rd1 43. Rh3 Qg5+ 44. Rhg3 R8d2+ 45. Rf2 Rxf2+ 46. Kxf2 Qd2+ 0-1

[Event "45th FIDE Womens Olympiad 2024"]
[Site "Budapest"]
[Date "2024.09.12"]
[Round "2.147"]
[White "Karimi, Setayesh"]
[Black "Zavala Galindo, Alejandra Beatriz"]
[Result "1-0"]
[ECO "A67"]
[WhiteElo "2105"]
[BlackElo "1870"]
[Annotator "NA"]
[PlyCount "83"]
[EventDate "2024.09.05"]
[EventType "team-tourn"]
[EventCountry "HUN"]
[SourceTitle "playchess.com"]
[Source "ChessBase"]
[SourceQuality "1"]
[WhiteTeam "Iran"]
[BlackTeam "El Salvador"]
[WhiteTeamCountry "IRI"]
[BlackTeamCountry "ESA"]
[TimeControl "40/5400+30:1800+30"]

1. d4 Nf6 2. c4 c5 3. d5 d6 4. Nc3 e6 5. e4 exd5 6. cxd5 g6 7. f4 Bg7 8. Bb5+ Nfd7 9. a4 O-O 10. Nf3 Na6 11. O-O Nb4 12. Be3 a6 13. Be2 Re8 14. Bf2 Qc7 15. Nd2 Rb8 16. Nc4 Nb6 17. Nd2 Nd7 18. Re1 Nf8 19. Nc4 b6 20. e5 dxe5 21. fxe5 Bf5 22. Bg3 Qd8 23. Nd6 Bc2 24. Qd2 Rxe5 25. Bxe5 Bxe5 26. Nc4 Bd4+ 27. Kh1 Bf5 28. Rf1 Nxd5 29. Nxd5 Qxd5 30. Ne3 Qe5 31. Nxf5 gxf5 32. Bd3 Be3 33. Qc2 f4 34. Bxa6 Re8 35. Bc4 Ne6 36. Qb3 Rb8 37. Rad1 Kf8 38. Rd5 Qc7 39. Rh5 Nd4 40. Qd3 Ke7 41. Qe4+ Kf8 42. Rxh7 1-0

[Event "45th FIDE Womens Olympiad 2024"]
[Site "Budapest"]
[Date "2024.09.12"]
[Round "2.148"]
[White "Barahona, Dalila Yamileth"]
[Black "Behzad Nazif, Parva"]
[Result "1-0"]
[ECO "A20"]
[WhiteElo "1833"]
[BlackElo "2092"]
[Annotator "NA"]
[PlyCount "72"]
[EventDate "2024.09.05"]
[EventType "team-tourn"]
[EventCountry "HUN"]
[SourceTitle "playchess.com"]
[Source "ChessBase"]
[SourceQuality "1"]
[WhiteTeam "El Salvador"]
[BlackTeam "Iran"]
[WhiteTeamCountry "ESA"]
[BlackTeamCountry "IRI"]
[TimeControl "40/5400+30:1800+30"]

1. c4 e5 2. g3 c6 3. d4 Bb4+ 4. Bd2 Bxd2+ 5. Qxd2 d6 6. Nc3 Nf6 7. Bg2 O-O 8. e3 Re8 9. dxe5 dxe5 10. Qxd8 Rxd8 11. Nf3 Re8 12. O-O a5 13. Rad1 Bg4 14. Rd2 h6 15. h3 Bxf3 16. Bxf3 Na6 17. Rfd1 Nc5 18. b3 Kf8 19. Kf1 Ke7 20. Bg2 Ra6 21. Rb1 Rb6 22. Ke2 Ra8 23. Kd1 Rb4 24. Bf1 Nfe4 25. Nxe4 Nxe4 26. Rc2 a4 27. Bg2 Nc5 28. Rc3 axb3 29. axb3 Ra2 30. Rc2 Ra3 31. Rc3 Raxb3 32. Rbxb3 Rxb3 33. Kc2 Rb4 34. f4 Na4 35. Rb3 Rxc4+ 36. Kd3 b5 1-0

[Event "45th FIDE Womens Olympiad 2024"]
[Site "Budapest"]
[Date "2024.09.12"]
[Round "2.149"]
[White "Mayorga Araya, Sofia"]
[Black "Narva, Mai"]
[Result "0-1"]
[ECO "C75"]
[WhiteElo "2059"]
[BlackElo "2420"]
[Annotator "TA"]
[PlyCount "76"]
[EventDate "2024.09.05"]
[EventType "team-tourn"]
[EventCountry "HUN"]
[SourceTitle "playchess.com"]
[Source "ChessBase"]
[SourceQuality "1"]
[WhiteTeam "Costa Rica"]
[BlackTeam "Estonia"]
[WhiteTeamCountry "CRI"]
[BlackTeamCountry "EST"]
[TimeControl "40/5400+30:1800+30"]

{[%evp 19,76,16,26,18,53,50,41,25,24,13,4,0,0,-30,-25,-23,-41,-16,-33,-43,-45,-35,-42,-33,-32,-36,-49,-49,-31,-427,-434,-465,-424,-471,-413,-551,-554,-580,-566,-552,-569,-572,-556,-775,-784,-787,-743,-756,-760,-917,-912,-1294,-1284,-1278,-883,-1232,-1205,-1263,-1206]} 1. e4 e5 2. Nf3 Nc6 3. Bb5 a6 4. Ba4 d6 5. c3 Bd7 6. O-O Nge7 7. d4 Ng6 8. Re1 Be7 9. Nbd2 O-O 10. Nf1 exd4 11. cxd4 Bg4 {[#] Hoping for ...Nh4.} 12. Bxc6 bxc6 13. h3 {White is slightly better.} Bd7 14. Be3 f5 15. exf5 Bxf5 16. Ng3 Be6 17. Ng5 Bxg5 18. Bxg5 Qxg5 19. Rxe6 Nf4 20. Re3 h5 {[#] Strongly threatening ...h4.} 21. Qf1 $1 h4 22. Ne2 Nd5 23. Re4 Rae8 $36 {[%mdl 2048] White is under pressure.} (23... Rab8 {simplifies} 24. b3 Rbe8 25. Rxe8 Rxe8 26. Kh1 Rf8) 24. Rg4 {[%mdl 8192] This move loses the game for White.} ({Better is} 24. Rxe8 $15 Rxe8 25. Qd1) 24... Qd2 $19 {[%csl LRb2,LRe2]} 25. Nc3 Ne3 ({And not} 25... Qxb2 26. Nxd5 cxd5 27. Rc1 $15) 26. fxe3 Qxe3+ 27. Kh1 Rxf1+ {Black is clearly winning.} 28. Rxf1 Rf8 29. Rd1 d5 {Inhibits Re4.} 30. Rxh4 Rf2 31. Rg4 Rxb2 32. Na4 Rxa2 33. Nc5 a5 34. Nd7 Re2 {Threatens to win with ...Re1+.} 35. Rb1 Re1+ 36. Rxe1 Qxe1+ 37. Kh2 a4 {And now ...a3 would win.} 38. Rg3 Qb4 {Weighted Error Value: White=0.80/Black=0.02 (flawless) .  Loses game:     	White=1     	---        Inaccurate:     	White=3     	Black=1      OK:         	White=8     	Black=14     Best:        	White=1     	---        Strong:       	White=1     	---} 0-1

[Event "45th FIDE Womens Olympiad 2024"]
[Site "Budapest"]
[Date "2024.09.12"]
[Round "2.150"]
[White "Olde, Margareth"]
[Black "Rodriguez Arrieta, Maria Elena"]
[Result "1-0"]
[ECO "E11"]
[WhiteElo "2135"]
[BlackElo "1941"]
[Annotator "NA"]
[PlyCount "105"]
[EventDate "2024.09.05"]
[EventType "team-tourn"]
[EventCountry "HUN"]
[SourceTitle "playchess.com"]
[Source "ChessBase"]
[SourceQuality "1"]
[WhiteTeam "Estonia"]
[BlackTeam "Costa Rica"]
[WhiteTeamCountry "EST"]
[BlackTeamCountry "CRI"]
[TimeControl "40/5400+30:1800+30"]

1. d4 Nf6 2. Nf3 e6 3. c4 Bb4+ 4. Nbd2 O-O 5. a3 Bxd2+ 6. Qxd2 d6 7. e3 Qe7 8. Be2 Nbd7 9. O-O e5 10. Qc2 a5 11. b3 e4 12. Nd2 Re8 13. Bb2 c6 14. Rae1 Nf8 15. f3 d5 16. fxe4 Nxe4 17. cxd5 Nxd2 18. Qxd2 cxd5 19. Bf3 Qg5 20. Qf2 Ng6 21. Bc1 Qd8 22. e4 dxe4 23. Bxe4 Rf8 24. a4 Qd6 25. h4 Ra6 26. h5 Ne7 27. h6 g6 28. Bf4 Qb4 29. Be5 f6 30. Bd3 Rc6 31. Bb5 Rc3 32. Bf4 Nd5 33. Bd2 Qxb3 34. Bxc3 Qxc3 35. Rc1 Qb4 36. Rc4 Qd6 37. Rc5 Be6 38. Bc4 b6 39. Rb5 Nc7 40. Bxe6+ Qxe6 41. Rb2 Nd5 42. Qe2 Qxe2 43. Rxe2 Nc3 44. Re7 Rf7 45. Rfe1 Nxa4 46. d5 Nc5 47. d6 b5 48. Rxf7 Kxf7 49. Re7+ Kf8 50. Rxh7 b4 51. Rh8+ Kf7 52. Rb8 g5 53. h7 1-0

[Event "45th FIDE Womens Olympiad 2024"]
[Site "Budapest"]
[Date "2024.09.12"]
[Round "2.151"]
[White "Acevedo Mendez, Jennifer"]
[Black "Blokhin, Sofia"]
[Result "0-1"]
[ECO "B41"]
[WhiteElo "1836"]
[BlackElo "2036"]
[Annotator "NA"]
[PlyCount "88"]
[EventDate "2024.09.05"]
[EventType "team-tourn"]
[EventCountry "HUN"]
[SourceTitle "playchess.com"]
[Source "ChessBase"]
[SourceQuality "1"]
[WhiteTeam "Costa Rica"]
[BlackTeam "Estonia"]
[WhiteTeamCountry "CRI"]
[BlackTeamCountry "EST"]
[TimeControl "40/5400+30:1800+30"]

1. e4 c5 2. Nf3 e6 3. d4 cxd4 4. Nxd4 a6 5. c4 Nf6 6. Nc3 Bb4 7. Qd3 Qc7 8. a3 Bxc3+ 9. Qxc3 O-O 10. Bd3 Nc6 11. O-O Ne5 12. Bf4 d6 13. Bxe5 dxe5 14. Nf3 Nd7 15. Rfe1 b6 16. Rac1 Bb7 17. Bb1 Rac8 18. Re3 Rfd8 19. h4 f6 20. b4 Nb8 21. Qb3 Qe7 22. Rd3 Rxd3 23. Qxd3 Rd8 24. Qe3 Qc7 25. c5 bxc5 26. Rxc5 Qd6 27. Ba2 Nd7 28. Rc1 Nf8 29. h5 Qd3 30. Qb6 Bxe4 31. Bxe6+ Kh8 32. Bc4 Qd7 33. Bxa6 Bxf3 34. gxf3 Ne6 35. Bb5 Qe7 36. Ba6 f5 37. Qe3 Nf4 38. Bf1 Qg5+ 39. Kh2 Qxh5+ 40. Kg1 Qg5+ 41. Kh2 h6 42. b5 Qh4+ 43. Kg1 Rd6 44. Rc6 Rd1 0-1

[Event "45th FIDE Womens Olympiad 2024"]
[Site "Budapest"]
[Date "2024.09.12"]
[Round "2.152"]
[White "Olde, Grete"]
[Black "Bogantes Robleto, Karina"]
[Result "1/2-1/2"]
[ECO "B31"]
[WhiteElo "1952"]
[BlackElo "1766"]
[Annotator "NA"]
[PlyCount "79"]
[EventDate "2024.09.05"]
[EventType "team-tourn"]
[EventCountry "HUN"]
[SourceTitle "playchess.com"]
[Source "ChessBase"]
[SourceQuality "1"]
[WhiteTeam "Estonia"]
[BlackTeam "Costa Rica"]
[WhiteTeamCountry "EST"]
[BlackTeamCountry "CRI"]
[TimeControl "40/5400+30:1800+30"]

1. e4 c5 2. Nf3 Nc6 3. Bb5 g6 4. Bxc6 dxc6 5. d3 Bg7 6. h3 Nf6 7. Nc3 Nd7 8. Be3 e5 9. Qd2 h6 10. Nh2 b6 11. O-O-O Nf8 12. f4 exf4 13. Bxf4 Ne6 14. Be3 Nd4 15. Rde1 Be6 16. Ng4 g5 17. e5 Bxg4 18. hxg4 Qe7 19. Bxd4 cxd4 20. Ne4 O-O 21. Ng3 Qe6 22. Kb1 Qxg4 23. Re4 Qe6 24. Qf2 f5 25. exf6 Qxf6 26. Qxf6 Rxf6 27. Rxd4 Raf8 28. Rd7 R6f7 29. Rxf7 Rxf7 30. Ne4 Rf5 31. c3 Kf8 32. Re1 Be5 33. d4 Bc7 34. Kc2 Kf7 35. Re2 h5 36. Nf2 g4 37. Kd3 Bg3 38. Ne4 Bc7 39. Nf2 Bg3 40. Ne4 1/2-1/2

[Event "45th FIDE Womens Olympiad 2024"]
[Site "Budapest"]
[Date "2024.09.12"]
[Round "2.153"]
[White "Cori T., Deysi"]
[Black "Smith, Olivia"]
[Result "1-0"]
[ECO "A49"]
[WhiteElo "2366"]
[BlackElo "2087"]
[Annotator "TA"]
[PlyCount "81"]
[EventDate "2024.09.05"]
[EventType "team-tourn"]
[EventCountry "HUN"]
[SourceTitle "playchess.com"]
[Source "ChessBase"]
[SourceQuality "1"]
[WhiteTeam "Peru"]
[BlackTeam "Wales"]
[WhiteTeamCountry "PER"]
[BlackTeamCountry "WLS"]
[TimeControl "40/5400+30:1800+30"]

{[%evp 10,81,25,23,23,11,0,0,3,-13,-20,-84,-27,-22,-31,-79,-64,-70,-61,-60,-68,-83,-25,-22,-31,-65,0,-47,-41,-39,-36,-30,-24,-45,-43,-58,-38,-45,0,0,0,0,12,0,0,-8,14,15,18,0,28,25,25,42,39,45,29,34,47,41,106,113,790,1110,1033,1085,992,500,1203,910,29971,29971,29974,29975]} 1. Nf3 Nf6 2. g3 g6 3. Bg2 Bg7 4. O-O O-O 5. d4 {[%cal Bd2d4,Bd4d5][%mdl 32]} d6 6. a4 Nc6 7. d5 Nb4 8. Nc3 a5 {The position is equal.} 9. Bg5 h6 10. Be3 (10. Bf4 $11) 10... Bf5 ({Better is} 10... c6 $17 {[%cal Rb4d5]} 11. Qd2 Kh7 (11... Nbxd5 12. Bxh6 Nxc3 13. bxc3 $15) 12. dxc6 bxc6) 11. Nd4 $11 Bd7 12. h3 {Against Ng4} (12. Bd2 $15 {is superior.}) 12... c6 $17 13. dxc6 bxc6 14. Qd2 Kh7 15. f4 Nfd5 (15... Qc8 $17 {[%cal Oc6c5] ...c5! would now be deadly.} 16. g4 c5) 16. Nxd5 $11 Nxd5 17. Bf2 e5 (17... Qc8 $15 18. Kh2 f5) 18. Nxc6 Bxc6 $15 19. Bxd5 Bxd5 20. Qxd5 exf4 21. gxf4 Qc8 22. Qd3 {[%cal Oc2c3]} Bxb2 (22... Rb8 $5 23. Rab1 Bxb2 $15 (23... Rxb2 24. Rxb2 Bxb2 25. c4 $11)) 23. Rab1 Bc3 24. Rb5 Bb4 25. f5 {[%cal Oc2c3]} Qc6 26. Rb6 Qc7 $1 27. Qd5 Rab8 28. Rc6 {[#] Intending fxg6+ and mate.} Qe7 29. Bd4 Bc5 30. Bxc5 dxc5 31. fxg6+ (31. e4 {looks sharper.} Rbd8 32. Qxc5 Qg5+ 33. Kh1) 31... fxg6 32. Rxf8 (32. Qxc5 Qxc5+ 33. Rxc5 Rfe8) 32... Rxf8 33. Qxc5 Qxc5+ 34. Rxc5 $11 {[%mdl 4096] Endgame. KR-KR} Rf4 (34... g5 $14) 35. Rxa5 $16 {[#] aiming for Ra7+.} Rc4 $2 {[%mdl 8192] Black cannot hold the game after this.} (35... g5 $16) 36. Ra7+ $18 Kg8 37. a5 {[%cal Ba4a5,Ba5a6,Ba6a7][%mdl 32]} Rxc2 38. Kf2 Rc3 (38... Kf8 $142 39. a6 Ra2) 39. a6 Rxh3 40. Rb7 Ra3 41. a7 {Weighted Error Value: White=0.11 (very precise) /Black=0.42.  Loses game:     	---       	Black=1      Mistake:       	White=3     	Black=4      Inaccurate:     	White=1     	Black=3      OK:         	White=13    	Black=7      Best:        	White=2     	---        Strong:       	---       	Black=1} 1-0

[Event "45th FIDE Womens Olympiad 2024"]
[Site "Budapest"]
[Date "2024.09.12"]
[Round "2.154"]
[White "Camp, Imogen A L"]
[Black "Contreras Huaman, Fiorella"]
[Result "1/2-1/2"]
[ECO "D31"]
[WhiteElo "1923"]
[BlackElo "2168"]
[Annotator "ChessBase"]
[PlyCount "117"]
[EventDate "2024.09.05"]
[EventType "team-tourn"]
[EventCountry "HUN"]
[SourceTitle "playchess.com"]
[Source "ChessBase"]
[SourceQuality "1"]
[WhiteTeam "Wales"]
[BlackTeam "Peru"]
[WhiteTeamCountry "WLS"]
[BlackTeamCountry "PER"]
[TimeControl "40/5400+30:1800+30"]

1. d4 d5 2. c4 e6 3. Nc3 a6 4. cxd5 exd5 5. Bf4 Nf6 6. e3 c6 7. Bd3 Bd6 8. Bxd6 Qxd6 9. Qc2 O-O 10. Nf3 Be6 11. O-O Nbd7 12. Rfc1 g6 13. Na4 Qe7 14. Rab1 Ne8 15. b4 Nd6 16. Nc5 Rfc8 17. a4 Bg4 18. Nd2 Nf6 19. a5 Kg7 20. Re1 Bf5 21. f3 Bxd3 22. Qxd3 Nb5 23. Rbd1 Re8 24. Nb1 Rad8 25. Nc3 Nxc3 26. Qxc3 Qc7 27. e4 dxe4 28. fxe4 Re7 29. Qf3 Nd7 30. Nd3 Qd6 31. Nc5 Nxc5 32. bxc5 Qf6 33. Qxf6+ Kxf6 34. Kf2 Red7 35. Ke3 Ke6 36. Re2 f5 37. e5 g5 38. Red2 Kd5 39. Kd3 f4 40. Re1 Re8 41. Rde2 Re6 42. Rf2 Rf7 43. Re4 Rh6 44. h3 Ke6 45. Re1 f3 46. Re3 fxg2 47. Rxg2 Rh5 48. Rb2 Rh4 49. Kc4 Rd7 50. Rd3 Rf4 51. Rg2 h6 52. Re2 Rf1 53. Ree3 Rdf7 54. Rb3 Rd7 55. Rf3 Rc1+ 56. Rbc3 Ra1 57. Ra3 Rc1+ 58. Rac3 Ra1 59. Ra3 1/2-1/2

[Event "45th FIDE Womens Olympiad 2024"]
[Site "Budapest"]
[Date "2024.09.12"]
[Round "2.155"]
[White "Garcia Andrada, Heidy Nicole"]
[Black "Smith, Lynda"]
[Result "1-0"]
[ECO "A36"]
[WhiteElo "2003"]
[BlackElo "1831"]
[Annotator "NA"]
[PlyCount "109"]
[EventDate "2024.09.05"]
[EventType "team-tourn"]
[EventCountry "HUN"]
[SourceTitle "playchess.com"]
[Source "ChessBase"]
[SourceQuality "1"]
[WhiteTeam "Peru"]
[BlackTeam "Wales"]
[WhiteTeamCountry "PER"]
[BlackTeamCountry "WLS"]
[TimeControl "40/5400+30:1800+30"]

1. e4 c5 2. c4 Nc6 3. Nc3 g6 4. g3 Bg7 5. Bg2 d6 6. Nge2 Nf6 7. h3 O-O 8. O-O Bd7 9. Rb1 Qc8 10. Kh2 Nd4 11. d3 Rb8 12. Nxd4 cxd4 13. Ne2 e5 14. b4 b5 15. cxb5 Bxb5 16. a4 Bd7 17. f4 Qa6 18. b5 Qb6 19. Ba3 Rfc8 20. Qd2 Ne8 21. f5 d5 22. fxg6 Qxg6 23. exd5 Bh6 24. Qd1 Bf5 25. Rb3 Nf6 26. Bf3 Rd8 27. g4 Bc8 28. Be7 Nxd5 29. Bxd8 Ne3 30. Qe1 Qd6 31. Be4 Nxf1+ 32. Qxf1 Qxd8 33. Ng3 Bf4 34. Kg2 Be6 35. Rb2 Rc8 36. Nh5 Rc1 37. Qf3 Bg5 38. Bf5 Bd5 39. Be4 Be6 40. Bf5 Bd5 41. Be4 Be6 42. Qg3 Qc7 43. Re2 Rc2 44. Qf2 Rxe2 45. Qxe2 Qc1 46. a5 Be3 47. h4 Kf8 48. b6 axb6 49. axb6 Qg1+ 50. Kh3 Bxg4+ 51. Qxg4 Qf1+ 52. Qg2 Qb1 53. Qg7+ Ke7 54. Qxe5+ Kf8 55. Qd6+ 1-0

[Event "45th FIDE Womens Olympiad 2024"]
[Site "Budapest"]
[Date "2024.09.12"]
[Round "2.156"]
[White "Chong, Kimberly"]
[Black "Hilario, Aleyla"]
[Result "0-1"]
[ECO "C02"]
[WhiteElo "1779"]
[BlackElo "1993"]
[Annotator "NA"]
[PlyCount "80"]
[EventDate "2024.09.05"]
[EventType "team-tourn"]
[EventCountry "HUN"]
[SourceTitle "playchess.com"]
[Source "ChessBase"]
[SourceQuality "1"]
[WhiteTeam "Wales"]
[BlackTeam "Peru"]
[WhiteTeamCountry "WLS"]
[BlackTeamCountry "PER"]
[TimeControl "40/5400+30:1800+30"]

1. e4 e6 2. d4 d5 3. e5 c5 4. c3 Nc6 5. Nf3 Qb6 6. Be2 Nh6 7. O-O cxd4 8. cxd4 Nf5 9. Nc3 Nfxd4 10. Nxd4 Qxd4 11. Qxd4 Nxd4 12. Bb5+ Nc6 13. Be3 Bd7 14. Bxc6 Bxc6 15. f4 Be7 16. g4 f6 17. Bd4 h5 18. exf6 Bxf6 19. Bxf6 gxf6 20. g5 h4 21. Rfe1 Kf7 22. gxf6 Rag8+ 23. Kf2 Rg4 24. Ne2 Rhg8 25. Rg1 Kxf6 26. Rxg4 Rxg4 27. Kf3 Rg7 28. Nd4 e5 29. fxe5+ Kxe5 30. Nxc6+ bxc6 31. Re1+ Kd6 32. b4 Rf7+ 33. Ke3 Re7+ 34. Kd2 Rxe1 35. Kxe1 Ke5 36. Kd2 Kd4 37. Kc2 Kc4 38. a3 a6 39. Kb2 Kd3 40. Kb3 d4 0-1

[Event "45th FIDE Womens Olympiad 2024"]
[Site "Budapest"]
[Date "2024.09.12"]
[Round "2.157"]
[White "Antonova, Nadezhda"]
[Black "Cvitan, Ena"]
[Result "1/2-1/2"]
[ECO "A11"]
[WhiteElo "1967"]
[BlackElo "2259"]
[Annotator "ChessBase"]
[PlyCount "135"]
[EventDate "2024.09.05"]
[EventType "team-tourn"]
[EventCountry "HUN"]
[SourceTitle "playchess.com"]
[Source "ChessBase"]
[SourceQuality "1"]
[WhiteTeam "Tajikistan"]
[BlackTeam "Croatia"]
[WhiteTeamCountry "TJK"]
[BlackTeamCountry "CRO"]
[TimeControl "40/5400+30:1800+30"]

1. Nf3 d5 2. e3 Bg4 3. c4 c6 4. cxd5 Bxf3 5. Qxf3 cxd5 6. Nc3 Nf6 7. d4 Nc6 8. Bd3 a6 9. O-O e6 10. Bd2 Bd6 11. Rfc1 O-O 12. Qd1 Rc8 13. Be1 Ne4 14. Nxe4 dxe4 15. Bxe4 Bxh2+ 16. Kf1 Bd6 17. Qd3 Qh4 18. g3 Qh2 19. Qb3 Rc7 20. Rc2 Rfc8 21. Rac1 Qh5 22. Kg1 h6 23. Kg2 Qg4 24. Qd3 h5 25. Bf3 Qg5 26. Bd2 h4 27. Be1 hxg3 28. Bxc6 gxf2+ 29. Kxf2 Rxc6 30. Rxc6 Rxc6 31. Rxc6 Qg3+ 32. Ke2 Qg2+ 33. Bf2 bxc6 34. e4 Be7 35. Ke1 Qh1+ 36. Ke2 Qh5+ 37. Kf1 Qb5 38. Qe2 Kf8 39. b3 Bd6 40. Qc4 f5 41. Ke2 fxe4 42. Qxb5 cxb5 43. Ke3 g5 44. Kxe4 Ke7 45. d5 Kd7 46. a4 b4 47. Kd4 g4 48. Ke4 Bh2 49. Bc5 exd5+ 50. Kxd5 a5 51. Ke4 Kc6 52. Bd4 Bc7 53. Be3 g3 54. Kf3 Kd5 55. Bg1 g2 56. Bf2 Bd8 57. Bg1 Ke5 58. Bf2 Kf5 59. Be3 Bc7 60. Bg1 Ke5 61. Bf2 Kd5 62. Bg1 Be5 63. Kxg2 Bd4 64. Bh2 Bb6 65. Kf3 Kd4 66. Bg1+ Kc3 67. Bxb6 Kxb3 68. Bxa5 1/2-1/2